bitfinex/quotes_ETHUSD_20220220
["timestamp","ask_amount","ask_price","bid_price","bid_amount"]
[1645399410705,8.9696,2638.1,2636.7,0.01052311]
[1645399410997,0.00363923,2637.1,2636.8,1.61133718]
[1645399411193,0.00363923,2637.1,2636.9,0.94874]
[1645399411394,0.00363923,2637.1,2636.9,1.24874]
[1645399411596,0.98872534,2637.9,2636.9,1.24874]
[1645399412063,0.0036392,2637.1,2636.9,0.3]
[1645399412252,0.0036392,2637.1,2636.7,1.31052311]
[1645399412951,0.94881,2637.9,2636.7,1.31052311]
[1645399413155,0.94881,2637.9,2636.8,1.61144601]
[1645399413156,0.00363926,2637.0,2636.8,1.61144601]
[1645399413356,0.00363926,2637.0,2636.9,0.94875]
[1645399414156,0.98872534,2637.9,2636.9,0.94875]
[1645399414356,0.00363923,2637.1,2636.9,0.94875]
[1645399415363,0.94881,2637.9,2636.9,0.94875]
[1645399415560,0.00201879,2637.1,2636.9,0.94875]
[1645399416579,0.03991534,2637.8,2636.7,2.20797311]
[1645399416781,12.4696,2638.1,2636.7,0.01052311]
[1645399416782,0.04355693,2637.1,2636.7,0.01052311]
[1645399417179,0.00364159,2637.1,2636.7,0.01052311]
[1645399417784,0.03991534,2637.5,2636.7,0.01052311]
[1645399417984,0.00364165,2637.0,2636.7,0.01052311]
[1645399418983,4.44891,2637.6,2636.7,0.01052311]
[1645399419184,0.00364168,2637.0,2636.7,0.01052311]
[1645399420227,4.2189,2637.7,2636.9,0.9488]
[1645399420428,0.00364168,2637.0,2636.9,0.9488]
[1645399421226,1.2412,2637.7,2636.9,1.2488]
[1645399421626,0.00364162,2637.1,2636.9,1.2488]
[1645399422229,11.7689,2638.1,2637.1,0.00686803]
[1645399422428,11.7689,2638.1,2637.3,0.94855]
[1645399422629,1.2465,2638.1,2637.3,0.94855]
[1645399423380,1.2465,2638.1,2637.3,1.24855]
[1645399423982,0.00201641,2637.8,2637.3,1.24855]
[1645399424381,0.00201641,2637.8,2637.4,19.03956911]
[1645399424582,0.00201641,2637.8,2637.7,4.96008466]
[1645399424780,0.00201641,2637.8,2637.7,1.054]
[1645399424983,1.2451,2639.0,2637.7,3.66480772]
[1645399425185,1.2451,2639.0,2637.8,1.61080772]
[1645399425379,1.2451,2639.0,2637.9,0.454]
[1645399425880,1.2451,2639.0,2637.9,0.754]
[1645399426078,1.2451,2639.0,2637.9,1.054]
[1645399426281,0.00364069,2638.6,2637.9,1.054]
[1645399426683,0.00364069,2638.6,2638.1,0.94822]
[1645399426887,0.03991534,2638.4,2637.3,0.454]
[1645399427137,0.00364069,2638.6,2637.1,0.95540713]
[1645399427338,0.28991534,2638.4,2637.1,0.95540713]
[1645399427532,0.00364106,2638.0,2637.1,0.95540713]
[1645399427730,0.00364106,2638.0,2637.4,1.89698]
[1645399428134,0.9485,2638.7,2637.4,1.89698]
[1645399428135,0.25,2638.7,2637.9,4.96008466]
[1645399428339,3.5,2639.3,2638.0,1.454]
[1645399428531,9.3822,2639.4,2638.0,1.454]
[1645399428731,9.3822,2639.4,2638.0,1.754]
[1645399429033,9.3822,2639.4,2638.3,0.94807]
[1645399429231,9.42211534,2639.4,2638.4,0.3]
[1645399429631,9.42211534,2639.4,2638.3,1.3]
[1645399429830,9.42211534,2639.4,2638.3,1.2481245]
[1645399430030,9.42211534,2639.4,2638.7,0.94811]
[1645399430233,0.03991534,2639.4,2638.7,0.94811]
[1645399430634,0.03991534,2639.1,2638.7,0.94811]
[1645399430886,0.03991534,2639.1,2638.6,1.89622]
[1645399431080,0.03991534,2638.8,2638.1,2.84421]
[1645399431781,3.46509044,2639.6,2638.1,14.36421]
[1645399431782,1.1673,2639.6,2638.1,14.36421]
[1645399431983,1.1673,2639.6,2638.1,14.81821]
[1645399432479,0.00364044,2639.0,2638.2,5.96008466]
[1645399432680,0.00364044,2639.0,2638.3,0.454]
[1645399433080,0.00364044,2639.0,2638.3,0.754]
[1645399433282,0.03991534,2639.4,2638.3,0.454]
[1645399433783,1.1673,2639.6,2637.7,5.5825]
[1645399433784,0.00364057,2638.8,2637.7,5.5825]
[1645399433984,0.00364057,2638.8,2637.8,2.35074]
[1645399434634,0.03991534,2639.0,2637.8,2.35074]
[1645399434835,0.00364078,2638.4,2637.8,2.35074]
[1645399435234,0.00364078,2638.4,2637.8,2.65074]
[1645399435534,0.00364078,2638.4,2637.9,1.3]
[1645399435735,0.03991534,2638.8,2638.1,0.94837]
[1645399435936,0.00364091,2638.2,2638.1,0.94837]
[1645399436137,0.00364091,2638.2,2638.1,1.24837]
[1645399436939,0.03991534,2638.8,2638.1,1.24837]
[1645399438279,7.7452,2639.2,2638.1,1.24837]
[1645399438688,0.25,2639.3,2638.1,1.24837]
[1645399438879,0.03991534,2638.8,2638.1,1.24837]
[1645399440285,0.03991534,2639.1,2638.1,1.24837]
[1645399440483,0.03991534,2638.6,2638.1,0.94837]
[1645399440784,0.03991534,2638.2,2637.5,1.89692]
[1645399442148,0.00363818,2638.1,2637.5,1.89692]
[1645399442345,0.00363818,2638.1,2637.7,0.3]
[1645399442951,1.1948,2638.8,2637.8,0.94845]
[1645399443155,0.03991534,2638.7,2637.9,0.3]
[1645399443349,0.00363822,2638.1,2637.9,0.3]
[1645399444149,1.1948,2638.8,2637.9,0.3]
[1645399444350,0.0036383,2638.1,2637.9,0.3]
[1645399445352,0.03991534,2638.3,2637.9,0.3]
[1645399445553,0.0036383,2638.1,2637.9,0.3]
[1645399446573,1.23471534,2638.8,2637.9,0.3]
[1645399446776,1.23471534,2638.8,2637.9,2.1967]
[1645399446777,0.0036383,2638.1,2637.9,2.1967]
[1645399447278,1.1948,2638.8,2638.1,0.00685068]
[1645399447475,0.25,2638.9,2638.1,0.00685068]
[1645399447678,0.25,2638.9,2638.1,1.00685068]
[1645399447874,0.03991534,2639.0,2638.1,1.00685068]
[1645399448075,0.03991534,2639.0,2638.1,0.30685068]
[1645399448275,0.03991534,2639.0,2638.2,0.94825]
[1645399448678,0.03991534,2639.0,2638.3,0.3]
[1645399448878,10.8571,2639.2,2638.3,0.3]
[1645399449075,0.03991534,2638.4,2638.1,0.00685068]
[1645399449730,0.00363793,2638.7,2638.1,0.00685068]
[1645399450228,0.03991534,2638.7,2638.1,0.00685068]
[1645399450430,0.00363805,2638.5,2638.1,0.00685068]
[1645399450625,0.00363805,2638.5,2638.2,0.89379269]
[1645399450826,0.00363805,2638.5,2638.2,1.19379269]
[1645399451431,0.03991534,2638.7,2638.2,1.19379269]
[1645399451628,0.00363808,2638.5,2638.2,1.19379269]
[1645399452130,0.00363808,2638.5,2638.1,0.00685068]
[1645399452131,0.04355342,2638.5,2638.1,0.00685068]
[1645399452341,0.03991534,2638.2,2638.1,0.00685068]
[1645399452933,0.71651534,2638.2,2638.1,0.00685068]
[1645399453132,1.91891534,2638.2,2638.1,0.00685068]
[1645399453395,4.88433816,2638.2,2638.1,0.00685068]
[1645399453597,5.0052125,2638.2,2638.1,0.00685068]
[1645399454494,8.8052125,2638.2,2638.1,0.00685068]
[1645399456296,2.98847968,2638.2,2638.1,0.00685068]
[1645399456501,0.6766,2638.2,2638.1,0.00685068]
[1645399456697,0.0036382,2638.3,2638.1,0.00685068]
[1645399457125,0.03991534,2638.2,2638.1,0.00685068]
[1645399457327,0.03991534,2638.2,2638.1,1.02312929]
[1645399457524,0.03991534,2638.2,2638.1,0.00685068]
[1645399458527,1.1180395,2638.2,2638.1,0.00685068]
[1645399458728,0.33991534,2638.2,2638.1,5.068e-05]
[1645399459130,0.88691534,2638.2,2638.1,5.068e-05]
[1645399459327,1.18691534,2638.2,2638.1,5.068e-05]
[1645399459527,0.33991534,2638.2,2638.1,5.068e-05]
[1645399460128,0.03991534,2638.2,2638.1,5.068e-05]
[1645399461477,3.53991534,2638.2,2638.1,5.068e-05]
[1645399461682,3.53991534,2638.2,2637.3,0.01455843]
[1645399461683,6.0,2638.1,2637.3,0.01455843]
[1645399461876,4.996,2638.0,2637.3,0.01455843]
[1645399462075,0.03991534,2637.4,2637.3,0.01455843]
[1645399462278,0.03991534,2637.4,2637.1,0.00686803]
[1645399462474,0.03991534,2637.4,2637.2,0.01455757]
[1645399462677,0.90355848,2637.3,2637.2,0.01455757]
[1645399463477,0.90355848,2637.3,2637.1,0.00686803]
[1645399463678,0.90355848,2637.3,2637.1,0.01050717]
[1645399463977,1.89246382,2637.3,2637.1,0.01050717]
[1645399464624,1.89246382,2637.3,2637.1,0.00686803]
[1645399464823,1.89246382,2637.3,2637.1,0.01050719]
[1645399465426,1.89246382,2637.3,2636.7,0.02508192]
[1645399465828,1.85254848,2637.3,2636.7,0.01052311]
[1645399466331,0.03991534,2636.8,2636.7,0.01052311]
[1645399466831,0.87714314,2636.8,2636.7,0.01052311]
[1645399469781,0.03991534,2636.8,2636.7,0.01052311]
[1645399469985,0.94908,2637.0,2636.7,0.01052311]
[1645399470186,0.03991534,2636.9,2636.7,0.01052311]
[1645399470784,0.03991534,2636.9,2636.7,0.01393208]
[1645399470985,1.24908,2637.0,2636.7,0.01393208]
[1645399471888,1.24908,2637.0,2636.7,0.01052311]
[1645399472129,1.24908,2637.0,2636.7,0.01393206]
[1645399472324,0.03991534,2636.8,2636.7,0.01393206]
[1645399472525,1.24908,2637.0,2636.7,0.01393206]
[1645399473028,0.94908,2637.0,2636.7,0.01052311]
[1645399473231,0.94908,2637.0,2636.3,0.01677332]
[1645399473232,0.00336794,2636.7,2636.3,0.01677332]
[1645399473429,0.00336794,2636.7,2636.3,0.01363783]
[1645399473430,0.03991534,2636.4,2636.3,0.01363783]
[1645399473635,0.98935534,2636.4,2636.3,0.01363783]
[1645399473829,4.80345534,2636.4,2636.3,0.01363783]
[1645399474028,5.97045534,2636.4,2636.3,0.01363783]
[1645399474228,6.74935452,2636.4,2636.1,0.007]
[1645399474434,1.0,2636.3,2636.1,0.007]
[1645399474829,0.03991534,2636.2,2636.1,0.007]
[1645399475231,3.19533918,2636.4,2636.1,0.007]
[1645399475232,1.20691534,2636.4,2636.1,0.007]
[1645399475429,2.1476,2636.7,2636.4,0.51275279]
[1645399475629,0.9492,2636.7,2636.4,0.51275279]
[1645399475886,1.9492,2636.7,2636.4,0.51275279]
[1645399476487,3.11205868,2636.7,2636.4,0.51275279]
[1645399476689,2.11205868,2636.7,2636.4,0.51275279]
[1645399477487,2.41205868,2636.7,2636.4,0.51275279]
[1645399478088,3.5,2636.6,2636.4,0.51639235]
[1645399478390,2.89885,2636.5,2636.4,0.51639235]
[1645399478989,2.89885,2636.5,2636.4,0.51275279]
[1645399479190,1.89885,2636.5,2636.4,0.51275279]
[1645399479390,6.0,2636.4,2636.3,0.00363962]
[1645399479637,18.1224,2636.4,2636.3,0.00363962]
[1645399479840,18.1224,2636.4,2636.3,0.00283962]
[1645399480239,18.1224,2636.4,2636.1,0.007]
[1645399480240,19.37181,2636.4,2636.1,0.007]
[1645399480436,1.00078512,2636.2,2636.1,0.007]
[1645399480936,9.87181,2636.4,2636.1,0.007]
[1645399481136,2.24941,2636.4,2636.1,0.007]
[1645399481838,1.07893388,2636.3,2636.1,0.007]
[1645399482839,1.07893388,2636.3,2636.1,0.01063977]
[1645399483481,1.37893388,2636.3,2636.1,0.01063977]
[1645399483681,1.37893388,2636.3,2636.1,0.06863192]
[1645399483882,1.07893388,2636.3,2636.1,0.06499215]
[1645399484083,1.07893388,2636.3,2636.1,0.06863192]
[1645399484281,0.94941,2636.4,2636.1,0.06863192]
[1645399484684,10.4378,2636.6,2636.1,0.06863192]
[1645399485082,10.4378,2636.6,2636.1,0.06499215]
[1645399485282,10.4378,2636.6,2636.1,0.06863189]
[1645399485485,10.4378,2636.6,2636.3,0.89357173]
[1645399485685,1.89856,2636.6,2636.1,0.06863189]
[1645399486284,1.89856,2636.6,2636.1,0.06499215]
[1645399486484,1.89856,2636.6,2636.2,0.00363968]
[1645399486686,1.0111105,2636.4,2636.2,0.00363968]
[1645399486887,0.9494,2636.3,2636.2,0.00363968]
[1645399487548,0.9494,2636.3,2636.1,0.06499215]
[1645399487747,0.9494,2636.3,2636.1,0.06863189]
[1645399487948,9.10886,2636.6,2636.1,0.06863189]
[1645399487949,7.2103,2636.6,2636.1,0.06863189]
[1645399488548,1.1308,2636.8,2636.7,1.1046673]
[1645399488757,0.25,2637.2,2636.7,1.1046673]
[1645399489057,0.12090734,2637.5,2636.7,1.9516673]
[1645399489058,0.00363787,2637.5,2636.7,1.9516673]
[1645399489253,0.00363787,2637.5,2636.7,2.2516673]
[1645399489451,0.00363787,2637.5,2636.9,0.94869]
[1645399489650,0.00363787,2637.5,2637.0,0.547]
[1645399489959,0.12090734,2638.9,2637.2,11.52]
[1645399490162,1.349e-05,2637.5,2637.4,11.52]
[1645399490356,7.88,2639.4,2637.6,11.52]
[1645399490552,0.5,2639.4,2638.0,5.0]
[1645399490789,0.5,2639.4,2638.1,5.94318]
[1645399490983,0.5,2639.4,2638.2,1.8959533]
[1645399491184,0.87474545,2639.3,2638.8,1.13835153]
[1645399491580,0.87474545,2639.3,2638.1,0.547]
[1645399491783,0.87474545,2639.3,2637.4,1.0]
[1645399491984,0.948517,2639.2,2637.4,1.547]
[1645399492183,0.94856,2638.7,2637.5,3.5]
[1645399492583,0.87847022,2638.6,2638.1,1.08139699]
[1645399492983,1.25540734,2639.1,2638.1,1.08139699]
[1645399493384,0.94836,2638.9,2638.1,1.08139699]
[1645399493782,0.00200993,2638.7,2638.1,1.08139699]
[1645399494384,0.90423465,2638.7,2638.1,1.08139699]
[1645399494631,3.083,2639.1,2638.1,1.08139699]
[1645399494833,2.1345,2639.1,2638.1,1.08139699]
[1645399495032,0.00364027,2638.5,2638.1,1.08139699]
[1645399495334,0.00364027,2638.5,2638.1,1.38139699]
[1645399495930,0.94838,2638.9,2638.5,1.13598495]
[1645399496328,0.94838,2638.9,2637.9,1.0]
[1645399496532,0.94838,2638.9,2637.9,1.3]
[1645399496730,0.94838,2638.9,2637.9,0.3]
[1645399497135,0.94838,2638.9,2637.6,0.847]
[1645399497329,0.00364027,2638.5,2637.6,0.847]
[1645399497529,0.00364027,2638.5,2638.4,1.11942587]
[1645399498291,0.94848,2638.6,2638.4,1.11942587]
[1645399498485,0.95212024,2638.6,2638.4,1.11942587]
[1645399499387,0.94848,2638.6,2638.4,1.11942587]
[1645399499785,0.95212021,2638.6,2638.4,1.11942587]
[1645399499989,0.00364021,2638.6,2638.4,1.11942587]
[1645399500595,3.57874247,2639.1,2638.4,1.11942587]
[1645399500596,2.19424247,2639.1,2638.4,1.11942587]
[1645399500988,0.00364021,2638.6,2638.4,1.11942587]
[1645399501894,0.94843,2638.8,2638.4,1.11942587]
[1645399502148,0.95214021,2638.6,2637.9,0.6]
[1645399502343,0.95214021,2638.6,2637.9,0.3]
[1645399502541,0.95214021,2638.6,2637.7,0.3]
[1645399502742,0.00364021,2638.6,2637.8,0.94842]
[1645399502941,1.44424247,2639.1,2637.8,0.94842]
[1645399503145,1.44424247,2639.1,2638.6,1.16276595]
[1645399503341,2.49424247,2639.1,2638.6,1.04648936]
[1645399503542,1.49424247,2639.1,2638.6,1.04648936]
[1645399503942,0.9484,2638.8,2638.6,1.04648936]
[1645399504344,0.9484,2638.8,2637.9,1.3]
[1645399504545,0.9484,2638.8,2637.9,0.3]
[1645399504748,0.00363999,2639.0,2638.0,0.94834]
[1645399505346,3.44256247,2639.1,2638.0,0.94834]
[1645399505548,3.44256247,2639.1,2638.6,0.86957162]
[1645399506584,1.89689,2639.0,2637.5,1.89684]
[1645399506788,0.94858,2638.5,2637.1,0.547]
[1645399506983,3.5,2638.4,2637.2,2.84496]
[1645399507182,1.198,2638.8,2637.2,2.84496]
[1645399507379,3.5,2638.7,2637.2,2.84496]
[1645399507580,1.10146075,2638.3,2637.8,0.87284579]
[1645399508081,0.00364055,2638.1,2637.8,0.87284579]
[1645399508284,0.00364055,2638.1,2637.8,1.17284579]
[1645399508980,0.9486,2638.3,2637.8,1.17284579]
[1645399509382,0.00364055,2638.1,2637.8,0.3]
[1645399509642,0.00364055,2638.1,2636.8,0.95227429]
[1645399510330,1.01112312,2637.9,2637.3,1.03163119]
[1645399510532,0.00364079,2637.6,2637.3,1.03163119]
[1645399511134,0.00364079,2637.6,2637.3,1.63163119]
[1645399511335,0.25,2638.4,2637.6,0.00671647]
[1645399511532,0.25,2638.4,2637.6,11.52671647]
[1645399511733,0.25,2639.0,2637.7,0.847]
[1645399511932,1.19530024,2639.0,2638.4,0.92246021]
[1645399512131,0.94530024,2639.0,2638.4,0.91598637]
[1645399512330,0.94530024,2639.0,2638.4,1.21598637]
[1645399512929,0.00200992,2638.8,2638.4,1.21598637]
[1645399513788,0.94530024,2639.0,2638.4,1.21598637]
[1645399513985,1.89365024,2639.0,2638.4,1.21598637]
[1645399514188,0.00364014,2638.7,2637.9,1.547]
[1645399514387,0.00364014,2638.7,2637.9,0.547]
[1645399514587,0.00364014,2638.7,2637.8,1.0]
[1645399514786,0.00364014,2638.7,2637.7,1.89677]
[1645399514986,2.84218024,2639.0,2637.7,1.89677]
[1645399515187,0.8497796,2638.5,2638.0,0.90479314]
[1645399515590,0.00364036,2638.4,2638.0,0.90479314]
[1645399515988,0.00364036,2638.4,2638.0,1.20479314]
[1645399516194,1.0,2639.1,2638.0,1.20479314]
[1645399516388,1.4458,2639.2,2638.0,1.20479314]
[1645399516389,4.3425,2639.2,2638.0,1.20479314]
[1645399516592,0.00364039,2638.3,2638.0,1.20479314]
[1645399517033,0.00364039,2638.3,2638.0,1.50479314]
[1645399517228,0.00364039,2638.3,2638.0,1.20479314]
[1645399517433,0.86730955,2638.9,2638.0,1.20479314]
[1645399517628,0.86730955,2638.9,2638.4,0.9571493]
[1645399517829,0.86730955,2638.9,2638.1,0.94829]
[1645399518229,1.81570955,2638.9,2637.8,1.3]
[1645399518428,1.81570955,2638.9,2637.8,0.6]
[1645399518629,0.86730955,2638.9,2637.8,0.3]
[1645399518832,4.5,2639.1,2637.8,0.3]
[1645399518833,0.0036403,2638.5,2638.4,1.14351173]
[1645399519230,0.0036403,2638.5,2638.4,1.44351173]
[1645399519929,2.29989153,2639.2,2638.6,0.94813]
[1645399520128,0.85409153,2639.2,2638.6,0.94813]
[1645399520329,0.85409153,2639.2,2638.8,1.17621487]
[1645399521392,0.85409153,2639.2,2638.6,0.94813]
[1645399521393,0.00176843,2639.1,2638.6,0.94813]
[1645399521790,0.00176843,2639.1,2638.3,1.89625]
[1645399521992,0.00176843,2639.1,2638.4,0.3]
[1645399522190,0.85409153,2639.2,2638.4,0.3]
[1645399522390,1.80238153,2639.2,2638.4,0.3]
[1645399522592,0.00340132,2638.8,2638.4,0.3]
[1645399522793,0.00340132,2638.8,2638.5,0.88680245]
[1645399522990,0.00340132,2638.8,2638.6,0.3]
[1645399523392,1.80238153,2639.2,2638.6,0.3]
[1645399523792,0.00340132,2638.8,2638.6,0.3]
[1645399524738,1.80238153,2639.2,2638.6,0.3]
[1645399524940,0.0017921,2638.8,2638.6,0.3]
[1645399525740,1.80238153,2639.2,2638.6,0.3]
[1645399526044,0.0017921,2638.8,2638.6,0.3]
[1645399527041,1.08638997,2639.4,2638.6,0.3]
[1645399527244,0.0034272,2638.8,2638.6,0.3]
[1645399528288,1.08638997,2639.4,2638.6,0.3]
[1645399528289,0.93058641,2639.1,2638.6,0.3]
[1645399528591,0.00352465,2638.8,2638.6,0.3]
[1645399529386,0.93058641,2639.1,2638.6,0.3]
[1645399529789,0.00352465,2638.8,2638.6,0.3]
[1645399530588,0.13819997,2639.4,2638.6,0.3]
[1645399530991,0.00352465,2638.8,2638.6,0.3]
[1645399531792,2.02742624,2639.3,2638.6,0.3]
[1645399532230,0.00341395,2638.8,2638.6,0.3]
[1645399533036,2.02742624,2639.3,2638.6,0.3]
[1645399533432,0.00341395,2638.8,2638.6,0.3]
[1645399533736,0.00341395,2638.8,2638.6,0.29866866]
[1645399534340,2.02742624,2639.3,2638.6,0.29866866]
[1645399534735,0.00341395,2638.8,2638.6,0.29866866]
[1645399535135,0.00341395,2638.8,2638.6,1.24680866]
[1645399535534,1.07916624,2639.3,2638.6,1.24680866]
[1645399535786,0.00342152,2638.8,2638.6,1.24680866]
[1645399536589,1.07916624,2639.3,2638.6,1.24680866]
[1645399536993,0.00342152,2638.8,2638.6,1.24680866]
[1645399537396,0.00342152,2638.8,2638.5,0.88680245]
[1645399537790,1.0,2639.3,2638.5,0.88680245]
[1645399538294,0.00342155,2638.8,2638.5,0.88680245]
[1645399539091,0.96330308,2639.0,2638.5,0.88680245]
[1645399539291,0.00342104,2638.8,2638.5,0.88680245]
[1645399540355,2.03798238,2639.5,2638.7,0.94818]
[1645399540649,0.00342104,2638.8,2638.7,1.24818]
[1645399541449,6.532,2639.6,2638.9,0.94807]
[1645399541847,0.12082234,2639.6,2639.0,0.3]
[1645399542050,15.115,2639.7,2639.0,0.3]
[1645399542246,15.115,2639.7,2639.1,0.3]
[1645399542247,7.38,2639.7,2639.1,0.3]
[1645399542446,7.38,2639.7,2639.3,1.16644833]
[1645399542649,1.3527484,2639.8,2639.3,1.16644833]
[1645399542851,0.00342062,2639.5,2639.4,0.3]
[1645399543506,0.00342062,2639.5,2639.1,0.3]
[1645399543895,0.94808,2639.7,2639.1,0.3]
[1645399544097,0.00342068,2639.4,2638.7,2.79518]
[1645399544295,0.00342068,2639.4,2638.7,3.09518]
[1645399544599,0.00342068,2639.4,2638.9,1.12053512]
[1645399544795,0.00342068,2639.4,2639.3,0.99176516]
[1645399544992,1.1027484,2639.8,2639.3,0.99176516]
[1645399545195,1.1027484,2639.8,2639.4,0.3]
[1645399545694,0.94801,2639.9,2639.4,0.3]
[1645399546494,0.00342044,2639.8,2639.4,0.3]
[1645399547146,0.00342044,2639.8,2639.1,0.3]
[1645399547343,0.00342044,2639.8,2639.2,0.3]
[1645399547541,1.95180458,2639.9,2639.2,0.3]
[1645399547742,0.00342047,2639.7,2638.8,0.3]
[1645399547941,0.00342047,2639.7,2638.9,0.94806]
[1645399548240,0.00342047,2639.7,2639.0,0.3]
[1645399548641,1.95180458,2639.9,2639.0,0.3]
[1645399548842,0.00342062,2639.5,2639.0,0.3]
[1645399549248,0.00342062,2639.5,2638.9,0.94807]
[1645399549542,0.00342062,2639.5,2639.0,0.3]
[1645399549947,6.06742234,2640.1,2638.9,0.547]
[1645399550149,0.94803,2639.9,2639.3,0.3]
[1645399550345,0.94803,2639.9,2638.9,0.547]
[1645399550544,0.94803,2639.9,2638.9,0.847]
[1645399550987,0.89829458,2639.6,2639.1,1.02836561]
[1645399551184,0.89829458,2639.6,2639.1,0.6]
[1645399551388,0.00342059,2639.5,2639.1,0.6]
[1645399551590,0.00342059,2639.5,2639.1,0.3]
[1645399551787,0.00342059,2639.5,2638.5,0.547]
[1645399551991,0.00342059,2639.5,2639.0,0.9480996]
[1645399552187,1.0629652,2639.1,2639.0,0.9480996]
[1645399552396,1.0629652,2639.1,2639.0,0.3]
[1645399552586,1.06638604,2639.1,2639.0,0.3]
[1645399552787,0.00342084,2639.1,2638.6,2.4492585]
[1645399552990,0.00342084,2639.1,2638.6,2.7492585]
[1645399553387,0.9482,2639.4,2638.6,2.7492585]
[1645399553790,0.00342828,2639.0,2638.6,2.7492585]
[1645399554188,0.00342828,2639.0,2638.6,1.6]
[1645399554389,0.00342828,2639.0,2638.6,0.3]
[1645399554636,1.18340264,2639.1,2638.7,0.3]
[1645399554837,0.00342832,2638.9,2638.5,1.8963602]
[1645399555150,1.18340264,2639.1,2637.7,8.2568]
[1645399555151,1.13683096,2639.1,2637.7,8.2568]
[1645399555339,1.11512129,2638.6,2638.0,0.86238382]
[1645399555535,3.5,2639.2,2637.6,1.90369787]
[1645399555536,6.41716004,2639.2,2637.6,1.90369787]
[1645399555738,6.41716004,2639.2,2637.7,1.61076863]
[1645399555938,9.15906004,2639.2,2637.7,1.61076863]
[1645399556136,6.60740004,2639.2,2638.1,0.9483021]
[1645399556338,6.60740004,2639.2,2637.7,2.55911863]
[1645399556339,3.7419,2639.2,2638.3,1.8964568]
[1645399556538,3.7419,2639.2,2638.3,2.4964568]
[1645399557338,0.00342975,2639.0,2638.3,4.3928452]
[1645399557538,0.00342975,2639.0,2638.9,0.8867611]
[1645399557743,0.00342975,2639.0,2638.9,1.4867611]
[1645399558385,0.9482,2639.4,2638.9,1.4867611]
[1645399558586,0.00342982,2639.1,2638.9,1.4867611]
[1645399558786,0.80162982,2639.4,2638.9,1.1867611]
[1645399559887,0.80162982,2639.4,2638.9,1.4867611]
[1645399560886,0.0017877,2639.3,2638.9,1.4867611]
[1645399561093,0.01258478,2639.1,2638.5,6.28e-05]
[1645399561295,2.54039185,2638.7,2638.5,6.28e-05]
[1645399561492,5.92480575,2638.6,2638.5,6.28e-05]
[1645399561690,5.92503353,2638.6,2638.5,6.28e-05]
[1645399561894,4.4817,2638.6,2638.5,6.28e-05]
[1645399562346,0.1486761,2638.7,2638.5,6.28e-05]
[1645399562737,0.1486761,2638.7,2638.5,1.01817929]
[1645399563740,0.1486761,2638.7,2638.5,1.61817929]
[1645399564342,1.44333353,2639.4,2638.5,4.51435929]
[1645399564539,1.44333353,2639.5,2638.5,3.51435929]
[1645399564739,0.00342692,2639.2,2638.5,3.51435929]
[1645399565341,0.00342692,2639.2,2638.7,0.9479652]
[1645399565547,3.29806004,2639.6,2639.1,1.13197452]
[1645399565793,0.00342709,2639.2,2639.1,1.43197452]
[1645399566190,0.00342709,2639.2,2639.1,1.73197452]
[1645399566790,5.41716004,2640.2,2639.1,2.67988892]
[1645399566996,0.25,2640.3,2639.3,1.89553]
[1645399567192,0.25,2640.3,2639.5,11.52]
[1645399567392,0.15190193,2640.6,2639.7,11.52]
[1645399567393,0.01370196,2640.6,2639.7,11.52]
[1645399567592,0.01370196,2640.6,2639.8,12.067]
[1645399567794,0.01370196,2640.6,2639.9,0.94366608]
[1645399567991,9.29716004,2640.9,2640.3,1.89488]
[1645399568195,0.00178285,2640.3,2639.8,2.7417754]
[1645399568391,0.00178285,2640.3,2640.0,0.3]
[1645399568589,0.00178285,2640.3,2639.8,2.7417754]
[1645399569189,1.91716004,2640.8,2640.2,1.11027475]
[1645399569392,7.38,2640.9,2640.3,0.9476421]
[1645399569393,0.00713019,2640.6,2640.3,0.9476421]
[1645399569843,0.00713019,2640.6,2640.3,1.2476421]
[1645399570042,7.33713019,2640.9,2640.3,0.3076421]
[1645399570241,1.91716004,2641.0,2640.6,1.05776411]
[1645399570643,1.91716004,2641.0,2640.6,0.3]
[1645399571040,1.91716004,2641.0,2640.3,0.0076421]
[1645399571041,1.91716004,2641.0,2640.3,0.3076421]
[1645399571241,9.29716004,2641.1,2640.3,0.3076421]
[1645399571443,7.38,2641.1,2640.3,0.3]
[1645399571643,9.29716004,2641.1,2640.3,1.247629]
[1645399571844,0.00188937,2640.8,2640.4,1.15575175]
[1645399572245,0.00188937,2640.8,2640.4,1.45575175]
[1645399572844,1.91716004,2641.0,2640.4,2.10328175]
[1645399573044,0.00188937,2640.7,2640.4,0.94753]
[1645399573288,0.00188937,2640.7,2640.5,1.15959513]
[1645399573891,7.38,2641.1,2640.5,1.15959513]
[1645399574296,7.28353529,2641.1,2640.5,1.15959513]
[1645399574896,7.28353529,2641.1,2640.6,0.9474986]
[1645399575097,4.18344239,2641.3,2640.6,0.9474986]
[1645399575098,11.56344239,2641.3,2640.6,0.9474986]
[1645399575295,10.43806004,2641.3,2640.7,0.94747]
[1645399575494,8.5209,2641.3,2640.7,0.94747]
[1645399575792,7.38,2641.3,2640.7,0.94747]
[1645399577633,7.38,2641.3,2641.0,1.10554448]
[1645399577833,0.12082234,2641.5,2641.0,0.99499004]
[1645399578238,1.2264,2641.7,2641.0,2.54231004]
[1645399579138,0.00364749,2641.5,2641.0,2.24231004]
[1645399579941,1.2264,2641.7,2641.1,0.9473186]
[1645399580142,0.00175582,2641.4,2641.2,0.94727]
[1645399580341,0.00175582,2641.4,2641.2,1.24727]
[1645399581194,3.88702508,2642.1,2641.5,0.94964834]
[1645399581404,0.00175582,2641.4,2641.2,1.24727]
[1645399581794,0.00175582,2641.4,2641.2,0.94727]
[1645399582394,1.96986504,2642.1,2641.3,1.07519797]
[1645399582597,0.00175582,2641.4,2641.3,1.07519797]
[1645399583594,5.46986504,2642.1,2641.3,1.07519797]
[1645399583796,0.00340926,2641.5,2641.3,1.07519797]
[1645399584843,0.00340926,2641.5,2641.1,0.9473186]
[1645399585142,0.00340926,2641.5,2641.1,0.3]
[1645399585143,0.00353236,2641.5,2641.1,0.3]
[1645399585843,0.00353236,2641.5,2640.8,2.8421246]
[1645399586044,1.02835142,2641.6,2640.9,0.95622555]
[1645399586243,0.00353242,2641.4,2640.9,0.95622555]
[1645399586844,0.00353242,2641.4,2640.5,2.8424486]
[1645399587045,0.00353242,2641.4,2640.3,4.7372436]